[Event "*** Titled Tuesday Blitz"]
[Site "Chess.com"]
[Date "2020.04.21"]
[Round "3"]
[White "lupta_robin"]
[Black "Evgeny81"]
[Result "1-0"]
[WhiteElo "2536"]
[BlackElo "2725"]
[TimeControl "180+1"]
[EndTime "10:30:38 PDT"]
[Termination "lupta_robin won by resignation"]

1. b3 {[%clk 0:03:00.9]} 1... d5 {[%clk 0:02:59.5]} 2. Bb2 {[%clk 0:03:00.8]}
2... Nf6 {[%clk 0:02:59.8]} 3. Nf3 {[%clk 0:03:00.7]} 3... c5 {[%clk 0:02:58.9]}
4. e3 {[%clk 0:03:00.8]} 4... Nc6 {[%clk 0:02:59.2]} 5. Bb5 {[%clk 0:03:01.3]}
5... e6 {[%clk 0:02:59.1]} 6. Ne5 {[%clk 0:02:54.9]} 6... Bd7 {[%clk 0:02:59.1]}
7. Bxc6 {[%clk 0:02:54.3]} 7... Bxc6 {[%clk 0:02:58.8]} 8. f4 {[%clk 0:02:54.8]}
8... Rc8 {[%clk 0:02:55]} 9. O-O {[%clk 0:02:54.3]} 9... Be7 {[%clk 0:02:52.1]}
10. d3 {[%clk 0:02:49.8]} 10... O-O {[%clk 0:02:51.7]} 11. Nd2 {[%clk
0:02:50.2]} 11... Be8 {[%clk 0:02:51.1]} 12. Ndf3 {[%clk 0:02:46.8]} 12... Nd7
{[%clk 0:02:49.8]} 13. Nxd7 {[%clk 0:02:45.1]} 13... Bxd7 {[%clk 0:02:49.8]} 14.
c4 {[%clk 0:02:40.2]} 14... b5 {[%clk 0:02:41.7]} 15. Ne5 {[%clk 0:02:35.6]}
15... Be8 {[%clk 0:02:41.3]} 16. Qe2 {[%clk 0:02:31.1]} 16... f6 {[%clk
0:02:38]} 17. Nf3 {[%clk 0:02:29.1]} 17... bxc4 {[%clk 0:02:28.4]} 18. bxc4
{[%clk 0:02:28.2]} 18... Qb6 {[%clk 0:02:21.3]} 19. Bc3 {[%clk 0:02:19.6]} 19...
Qa6 {[%clk 0:02:12.1]} 20. Rab1 {[%clk 0:02:09.9]} 20... Bf7 {[%clk 0:02:11.9]}
21. Rfc1 {[%clk 0:02:05.4]} 21... dxc4 {[%clk 0:02:06]} 22. dxc4 {[%clk
0:02:04.9]} 22... Bg6 {[%clk 0:02:05.8]} 23. Rb3 {[%clk 0:01:59.8]} 23... Qc6
{[%clk 0:02:00.1]} 24. Nd2 {[%clk 0:01:54.8]} 24... Rfd8 {[%clk 0:01:54.3]} 25.
e4 {[%clk 0:01:54.2]} 25... Bd6 {[%clk 0:01:48.2]} 26. g3 {[%clk 0:01:45]} 26...
Bc7 {[%clk 0:01:45.6]} 27. Re1 {[%clk 0:01:29.1]} 27... Rd7 {[%clk 0:01:39.2]}
28. Nf1 {[%clk 0:01:28.7]} 28... Rcd8 {[%clk 0:01:36.3]} 29. Bb2 {[%clk
0:01:15.7]} 29... Ba5 {[%clk 0:01:31.5]} 30. Bc3 {[%clk 0:01:15.4]} 30... Bxc3
{[%clk 0:01:29.3]} 31. Rxc3 {[%clk 0:01:16.3]} 31... Rd4 {[%clk 0:01:29.4]} 32.
e5 {[%clk 0:01:09.6]} 32... Bd3 {[%clk 0:01:20.1]} 33. Qf2 {[%clk 0:01:00.1]}
33... f5 {[%clk 0:01:15.9]} 34. Ne3 {[%clk 0:00:58.3]} 34... Be4 {[%clk
0:01:14.3]} 35. Re2 {[%clk 0:00:51.2]} 35... Qa4 {[%clk 0:01:08]} 36. h3 {[%clk
0:00:47.1]} 36... h6 {[%clk 0:00:59.4]} 37. Kh2 {[%clk 0:00:47]} 37... Rb8
{[%clk 0:00:58.1]} 38. Rc1 {[%clk 0:00:42.4]} 38... Qa3 {[%clk 0:00:54.6]} 39.
Rg1 {[%clk 0:00:42.2]} 39... Rbd8 {[%clk 0:00:38.9]} 40. g4 {[%clk 0:00:40.9]}
40... Bd3 {[%clk 0:00:39.4]} 41. Rd2 {[%clk 0:00:37.4]} 41... Be4 {[%clk
0:00:30.1]} 42. Re2 {[%clk 0:00:32.7]} 42... R8d7 {[%clk 0:00:26.7]} 43. gxf5
{[%clk 0:00:32.1]} 43... exf5 {[%clk 0:00:27.6]} 44. Qh4 {[%clk 0:00:15.2]}
44... Qd3 {[%clk 0:00:22.3]} 45. Rge1 {[%clk 0:00:13.3]} 45... Bf3 {[%clk
0:00:19.2]} 46. Rf2 {[%clk 0:00:13.2]} 46... Ba8 {[%clk 0:00:16]} 47. e6 {[%clk
0:00:09.6]} 47... Rd8 {[%clk 0:00:15.2]} 48. e7 {[%clk 0:00:09.4]} 48... Re8
{[%clk 0:00:15.2]} 49. Nd5 {[%clk 0:00:05.1]} 49... Bxd5 {[%clk 0:00:10.3]} 50.
cxd5 {[%clk 0:00:06]} 50... Rxd5 {[%clk 0:00:10.2]} 51. Rg2 {[%clk 0:00:05.8]}
51... Qd4 {[%clk 0:00:07.7]} 52. Qxh6 {[%clk 0:00:04.6]} 52... Rd6 {[%clk
0:00:06.2]} 53. Rxg7+ {[%clk 0:00:03.4]} 53... Qxg7 {[%clk 0:00:06.5]} 54. Qxd6
{[%clk 0:00:04.3]} 54... Kh7 {[%clk 0:00:06.8]} 55. Qe6 {[%clk 0:00:04.1]} 55...
Qh6 {[%clk 0:00:05.7]} 56. Qf7+ {[%clk 0:00:04.4]} 56... Qg7 {[%clk 0:00:05.2]}
57. Qh5+ {[%clk 0:00:04.5]} 57... Qh6 {[%clk 0:00:04.6]} 58. Qf7+ {[%clk
0:00:05.1]} 58... Qg7 {[%clk 0:00:05]} 59. Qxe8 {[%clk 0:00:05.7]} 59... Qb2+
{[%clk 0:00:04.8]} 60. Kg1 {[%clk 0:00:05.2]} 60... Qd4+ {[%clk 0:00:04.4]} 61.
Kh1 {[%clk 0:00:04.4]} 61... Qd5+ {[%clk 0:00:04.6]} 62. Kg1 {[%clk 0:00:03.4]}
62... Qd4+ {[%clk 0:00:05.1]} 63. Kg2 {[%clk 0:00:03.6]} 63... Qd2+ {[%clk
0:00:04.9]} 64. Kf3 {[%clk 0:00:04.2]} 64... Qd3+ {[%clk 0:00:03.5]} 65. Re3
{[%clk 0:00:03.6]} 65... Qf1+ {[%clk 0:00:03.5]} 66. Kg3 {[%clk 0:00:04.1]}
66... Qg1+ {[%clk 0:00:03.5]} 67. Kh4 {[%clk 0:00:04.2]} 67... Qxe3 {[%clk
0:00:01.9]} 68. Qf7+ {[%clk 0:00:04.1]} 68... Kh6 {[%clk 0:00:02.3]} 69. Qf6+
{[%clk 0:00:04.6]} 69... Kh7 {[%clk 0:00:02.6]} 70. Qxf5+ {[%clk 0:00:04.8]}
70... Kh6 {[%clk 0:00:03]} 71. Qf6+ {[%clk 0:00:04.9]} 71... Kh7 {[%clk
0:00:03.2]} 72. Qf7+ {[%clk 0:00:05.4]} 72... Kh6 {[%clk 0:00:03.5]} 73. e8=Q
{[%clk 0:00:05.8]} 73... Qf2+ {[%clk 0:00:02.7]} 74. Kg4 {[%clk 0:00:06.4]}
74... Qg2+ {[%clk 0:00:02.7]} 75. Kf5 {[%clk 0:00:07]} 75... Qc2+ {[%clk
0:00:02.8]} 76. Qe4 {[%clk 0:00:06.8]} 1-0

[Event "*** Titled Tuesday Blitz"]
[Site "Chess.com"]
[Date "2020.04.21"]
[Round "3"]
[White "Zq1"]
[Black "realmadridtv"]
[Result "1-0"]
[WhiteElo "2565"]
[BlackElo "2313"]
[TimeControl "180+1"]
[EndTime "10:30:42 PDT"]
[Termination "Zq1 won on time"]

1. d4 {[%clk 0:03:00.9]} 1... Nf6 {[%clk 0:02:59.6]} 2. c4 {[%clk 0:03:01]} 2...
e6 {[%clk 0:02:59.5]} 3. g3 {[%clk 0:03:00.6]} 3... d5 {[%clk 0:02:59.3]} 4. Bg2
{[%clk 0:03:00.3]} 4... Be7 {[%clk 0:02:58.1]} 5. Nf3 {[%clk 0:03:00.4]} 5...
O-O {[%clk 0:02:57.8]} 6. Nc3 {[%clk 0:02:57.3]} 6... dxc4 {[%clk 0:02:56.5]} 7.
Ne5 {[%clk 0:02:56.8]} 7... Nc6 {[%clk 0:02:52.6]} 8. Bxc6 {[%clk 0:02:55]} 8...
bxc6 {[%clk 0:02:52.5]} 9. Nxc6 {[%clk 0:02:55.2]} 9... Qe8 {[%clk 0:02:52.4]}
10. Nxe7+ {[%clk 0:02:52]} 10... Qxe7 {[%clk 0:02:53.3]} 11. Qa4 {[%clk
0:02:51.6]} 11... Bb7 {[%clk 0:02:47.6]} 12. O-O {[%clk 0:02:45.8]} 12... e5
{[%clk 0:02:47.5]} 13. dxe5 {[%clk 0:02:38.3]} 13... Qxe5 {[%clk 0:02:48.4]} 14.
Qxc4 {[%clk 0:02:37.6]} 14... Qh5 {[%clk 0:02:41.4]} 15. f3 {[%clk 0:02:33.5]}
15... Rad8 {[%clk 0:02:18.2]} 16. Bf4 {[%clk 0:02:27]} 16... Qh3 {[%clk
0:02:11.3]} 17. e4 {[%clk 0:02:22.5]} 17... Nh5 {[%clk 0:02:03.3]} 18. Qxc7
{[%clk 0:02:04.1]} 18... Rd7 {[%clk 0:01:57.8]} 19. Qe5 {[%clk 0:02:00.4]} 19...
f6 {[%clk 0:01:55.2]} 20. Qf5 {[%clk 0:01:50]} 20... Qxf5 {[%clk 0:01:38]} 21.
exf5 {[%clk 0:01:49.4]} 21... Nxf4 {[%clk 0:01:37.8]} 22. gxf4 {[%clk
0:01:49.5]} 22... Rd2 {[%clk 0:01:07.6]} 23. Rf2 {[%clk 0:01:43.5]} 23... Rfd8
{[%clk 0:01:03]} 24. Raf1 {[%clk 0:01:35.7]} 24... R2d4 {[%clk 0:00:53.1]} 25.
Re1 {[%clk 0:01:22.9]} 25... R8d7 {[%clk 0:00:43.4]} 26. Ne4 {[%clk 0:01:17.6]}
26... R4d5 {[%clk 0:00:38.3]} 27. Ng3 {[%clk 0:01:05.7]} 27... Kf7 {[%clk
0:00:33.3]} 28. Kg2 {[%clk 0:00:59.3]} 28... Rd4 {[%clk 0:00:29.9]} 29. Ne4
{[%clk 0:00:43]} 29... R7d5 {[%clk 0:00:29.8]} 30. Rc1 {[%clk 0:00:39]} 30...
Rd7 {[%clk 0:00:26.3]} 31. Nc5 {[%clk 0:00:32.9]} 31... Rc7 {[%clk 0:00:26.5]}
32. Rfc2 {[%clk 0:00:30.2]} 32... Bd5 {[%clk 0:00:22]} 33. Ne6 {[%clk
0:00:29.4]} 33... Rxc2+ {[%clk 0:00:17.6]} 34. Rxc2 {[%clk 0:00:28.6]} 34...
Bxe6 {[%clk 0:00:18]} 35. fxe6+ {[%clk 0:00:28.6]} 35... Kxe6 {[%clk 0:00:18.9]}
36. Kg3 {[%clk 0:00:26.1]} 36... a5 {[%clk 0:00:15]} 37. Rc6+ {[%clk 0:00:22.8]}
37... Kf7 {[%clk 0:00:13.3]} 38. b3 {[%clk 0:00:19.1]} 38... a4 {[%clk
0:00:13.4]} 39. Rb6 {[%clk 0:00:17.1]} 39... a3 {[%clk 0:00:12.8]} 40. Ra6
{[%clk 0:00:16.2]} 40... g5 {[%clk 0:00:09.8]} 41. fxg5 {[%clk 0:00:14.9]} 41...
fxg5 {[%clk 0:00:10.7]} 42. Rxa3 {[%clk 0:00:14.9]} 42... h5 {[%clk 0:00:11.3]}
43. Ra4 {[%clk 0:00:13.7]} 43... h4+ {[%clk 0:00:11]} 44. Kh3 {[%clk 0:00:13.7]}
44... Rd2 {[%clk 0:00:11.8]} 45. f4 {[%clk 0:00:09.8]} 45... Kg6 {[%clk
0:00:07.1]} 46. fxg5 {[%clk 0:00:07.9]} 46... Kxg5 {[%clk 0:00:07.7]} 47. Rg4+
{[%clk 0:00:07.4]} 47... Kf5 {[%clk 0:00:07.1]} 48. Rxh4 {[%clk 0:00:06.6]}
48... Rxa2 {[%clk 0:00:06.2]} 49. Rb4 {[%clk 0:00:06.5]} 49... Rb2 {[%clk
0:00:05.5]} 50. Kg3 {[%clk 0:00:06.7]} 50... Kg5 {[%clk 0:00:06.1]} 51. h4+
{[%clk 0:00:06.7]} 51... Kh5 {[%clk 0:00:07]} 52. Rb5+ {[%clk 0:00:07]} 52...
Kg6 {[%clk 0:00:07.1]} 53. h5+ {[%clk 0:00:07.4]} 53... Kh6 {[%clk 0:00:06.6]}
54. Kf3 {[%clk 0:00:08.1]} 54... Rc2 {[%clk 0:00:06.7]} 55. Ke3 {[%clk
0:00:08.5]} 55... Rh2 {[%clk 0:00:06.1]} 56. Kd3 {[%clk 0:00:08.8]} 56... Rh4
{[%clk 0:00:06]} 57. Kc3 {[%clk 0:00:08.4]} 57... Kg7 {[%clk 0:00:06.5]} 58. Kb2
{[%clk 0:00:08.4]} 58... Kf6 {[%clk 0:00:06.7]} 59. Ka3 {[%clk 0:00:08.9]} 59...
Ke6 {[%clk 0:00:07.3]} 60. b4 {[%clk 0:00:07.3]} 60... Kd7 {[%clk 0:00:07.5]}
61. Rc5 {[%clk 0:00:06.4]} 61... Rh1 {[%clk 0:00:06.9]} 62. Ka4 {[%clk
0:00:06.4]} 62... Ra1+ {[%clk 0:00:05.2]} 63. Kb5 {[%clk 0:00:06.4]} 63... Rb1
{[%clk 0:00:05.1]} 64. Ka5 {[%clk 0:00:06.2]} 64... Ra1+ {[%clk 0:00:05.4]} 65.
Kb6 {[%clk 0:00:06.2]} 65... Ra8 {[%clk 0:00:05]} 66. b5 {[%clk 0:00:06.3]}
66... Kd6 {[%clk 0:00:05.1]} 67. Rc6+ {[%clk 0:00:05.9]} 67... Kd5 {[%clk
0:00:05.6]} 68. Kb7 {[%clk 0:00:05.8]} 68... Rh8 {[%clk 0:00:04.4]} 69. h6
{[%clk 0:00:05.3]} 69... Rh7+ {[%clk 0:00:04]} 70. Kb6 {[%clk 0:00:05.4]} 70...
Rf7 {[%clk 0:00:02.7]} 71. Rg6 {[%clk 0:00:05.1]} 71... Kc4 {[%clk 0:00:02.3]}
72. Ka6 {[%clk 0:00:04.7]} 72... Kb4 {[%clk 0:00:02]} 73. b6 {[%clk 0:00:04.7]}
73... Rf2 {[%clk 0:00:02.5]} 74. b7 {[%clk 0:00:04.7]} 74... Rf8 {[%clk
0:00:01.6]} 75. Kb6 {[%clk 0:00:04.3]} 75... Rf7 {[%clk 0:00:01.4]} 76. Rg4+
{[%clk 0:00:04.2]} 1-0

[Event "*** Titled Tuesday Blitz"]
[Site "Chess.com"]
[Date "2020.04.21"]
[Round "3"]
[White "GMBenjaminBok"]
[Black "Dyadya81"]
[Result "1-0"]
[WhiteElo "2877"]
[BlackElo "2654"]
[TimeControl "180+1"]
[EndTime "10:30:45 PDT"]
[Termination "GMBenjaminBok won by resignation"]

1. c4 {[%clk 0:03:00.9]} 1... e5 {[%clk 0:02:59.4]} 2. g3 {[%clk 0:03:00.9]}
2... h5 {[%clk 0:02:59.3]} 3. Nf3 {[%clk 0:03:00.1]} 3... e4 {[%clk 0:02:59.3]}
4. Nh4 {[%clk 0:03:00.5]} 4... c6 {[%clk 0:02:58.1]} 5. d3 {[%clk 0:02:54.2]}
5... Bb4+ {[%clk 0:02:52.2]} 6. Nc3 {[%clk 0:02:48.9]} 6... d5 {[%clk
0:02:33.5]} 7. cxd5 {[%clk 0:02:39.7]} 7... cxd5 {[%clk 0:02:22.4]} 8. dxe4
{[%clk 0:01:58.5]} 8... d4 {[%clk 0:02:21.9]} 9. a3 {[%clk 0:01:58.6]} 9... Ba5
{[%clk 0:02:20.2]} 10. b4 {[%clk 0:01:57.5]} 10... dxc3 {[%clk 0:02:19.5]} 11.
bxa5 {[%clk 0:01:57.1]} 11... Qxa5 {[%clk 0:02:16.4]} 12. Bg2 {[%clk 0:01:54.4]}
12... c2+ {[%clk 0:01:57.7]} 13. Qd2 {[%clk 0:01:52.8]} 13... Nc6 {[%clk
0:01:56.1]} 14. Qxa5 {[%clk 0:01:42.9]} 14... Nxa5 {[%clk 0:01:57]} 15. Ra2
{[%clk 0:01:43.1]} 15... Be6 {[%clk 0:01:45.3]} 16. Rxc2 {[%clk 0:01:42.6]}
16... Ne7 {[%clk 0:01:44.3]} 17. O-O {[%clk 0:01:40.7]} 17... O-O {[%clk
0:01:38.7]} 18. Nf5 {[%clk 0:01:10]} 18... Nec6 {[%clk 0:01:20.7]} 19. Bb2
{[%clk 0:01:08.5]} 19... f6 {[%clk 0:01:13.2]} 20. Ne3 {[%clk 0:01:02.5]} 20...
Rfd8 {[%clk 0:01:09.8]} 21. Nd5 {[%clk 0:01:00.4]} 21... Rac8 {[%clk 0:01:10.3]}
22. f4 {[%clk 0:00:41]} 22... f5 {[%clk 0:01:10.1]} 23. Rd1 {[%clk 0:00:27.9]}
23... Kf7 {[%clk 0:01:05.3]} 24. Kf2 {[%clk 0:00:21.1]} 24... b5 {[%clk
0:00:56.6]} 25. exf5 {[%clk 0:00:15.2]} 25... Bxf5 {[%clk 0:00:56.5]} 26. e4
{[%clk 0:00:14.9]} 26... Bg4 {[%clk 0:00:57]} 27. Rdc1 {[%clk 0:00:09.2]} 27...
Nc4 {[%clk 0:00:39.8]} 28. Bf1 {[%clk 0:00:08.8]} 28... N6a5 {[%clk 0:00:38.5]}
29. Ne3 {[%clk 0:00:08.5]} 29... Nxe3 {[%clk 0:00:33]} 30. Rxc8 {[%clk
0:00:05.9]} 30... Rxc8 {[%clk 0:00:21.2]} 31. Kxe3 {[%clk 0:00:04.9]} 31... Nc4+
{[%clk 0:00:21.4]} 32. Bxc4+ {[%clk 0:00:04.2]} 32... Rxc4 {[%clk 0:00:20.5]}
33. Rxc4 {[%clk 0:00:03.4]} 33... bxc4 {[%clk 0:00:21.4]} 34. Kd4 {[%clk
0:00:03.3]} 34... Be2 {[%clk 0:00:21.5]} 35. Ke5 {[%clk 0:00:02.5]} 35... Bd3
{[%clk 0:00:21]} 36. f5 {[%clk 0:00:02.8]} 36... g6 {[%clk 0:00:17.4]} 37. Kf4
{[%clk 0:00:02.9]} 37... a5 {[%clk 0:00:14.3]} 38. h3 {[%clk 0:00:02.3]} 38...
Bf1 {[%clk 0:00:13.8]} 39. h4 {[%clk 0:00:01.7]} 39... Bd3 {[%clk 0:00:13.3]}
40. Ke5 {[%clk 0:00:01.9]} 40... gxf5 {[%clk 0:00:11.3]} 41. exf5 {[%clk
0:00:01.5]} 41... Be2 {[%clk 0:00:11.5]} 42. Kf4 {[%clk 0:00:01.9]} 42... Bg4
{[%clk 0:00:10.1]} 43. Bc3 {[%clk 0:00:02.3]} 43... a4 {[%clk 0:00:09.6]} 44.
Ke5 {[%clk 0:00:02.7]} 44... Be2 {[%clk 0:00:08.7]} 45. f6 {[%clk 0:00:03]}
45... Bg4 {[%clk 0:00:08.2]} 46. Kd5 {[%clk 0:00:03.2]} 46... Be2 {[%clk
0:00:08.4]} 47. Kc5 {[%clk 0:00:03.5]} 47... Bd3 {[%clk 0:00:07.2]} 48. Kb5
{[%clk 0:00:04]} 48... Bc2 {[%clk 0:00:06.8]} 49. Kxc4 {[%clk 0:00:04.5]} 49...
Bb3+ {[%clk 0:00:07.4]} 50. Kb4 {[%clk 0:00:04.8]} 50... Bd1 {[%clk 0:00:07.9]}
51. Be5 {[%clk 0:00:05.1]} 51... Ke6 {[%clk 0:00:08.2]} 52. Bd4 {[%clk
0:00:04.5]} 52... Kf7 {[%clk 0:00:08.7]} 53. Bc3 {[%clk 0:00:05.1]} 53... Ke6
{[%clk 0:00:06.9]} 54. Kc5 {[%clk 0:00:05.6]} 54... Kf7 {[%clk 0:00:07.3]} 55.
Kd6 {[%clk 0:00:06]} 55... Bg4 {[%clk 0:00:07.7]} 56. Ke5 {[%clk 0:00:06.5]}
56... Be6 {[%clk 0:00:07.7]} 57. Kd6 {[%clk 0:00:06.8]} 57... Bg4 {[%clk
0:00:08.1]} 58. Kc5 {[%clk 0:00:07.7]} 58... Bd1 {[%clk 0:00:08.6]} 59. Kb4
{[%clk 0:00:08.6]} 59... Ke6 {[%clk 0:00:07.7]} 60. Bd4 {[%clk 0:00:07.4]} 60...
Kf7 {[%clk 0:00:07.9]} 61. g4 {[%clk 0:00:06.7]} 61... hxg4 {[%clk 0:00:06.3]}
62. Kc3 {[%clk 0:00:07.4]} 62... g3 {[%clk 0:00:06]} 63. Kd2 {[%clk 0:00:07.9]}
63... Bh5 {[%clk 0:00:04.4]} 64. Ke3 {[%clk 0:00:08.1]} 64... Bd1 {[%clk
0:00:01.9]} 65. Kf4 {[%clk 0:00:08]} 65... Bh5 {[%clk 0:00:02.1]} 66. Kxg3
{[%clk 0:00:07.7]} 66... Kg6 {[%clk 0:00:03]} 67. Kf4 {[%clk 0:00:07.8]} 67...
Bd1 {[%clk 0:00:03.9]} 68. Ke5 {[%clk 0:00:07.6]} 68... Bg4 {[%clk 0:00:04.2]}
69. Kd6 {[%clk 0:00:07.5]} 69... Kf7 {[%clk 0:00:04.8]} 70. Ke5 {[%clk
0:00:07.1]} 70... Bh5 {[%clk 0:00:05.2]} 71. Kd5 {[%clk 0:00:07]} 71... Bf3+
{[%clk 0:00:04.7]} 72. Kc5 {[%clk 0:00:07.3]} 72... Bd1 {[%clk 0:00:05.6]} 73.
Kb5 {[%clk 0:00:07.5]} 73... Kg6 {[%clk 0:00:06.2]} 74. h5+ {[%clk 0:00:06.7]}
74... Bxh5 {[%clk 0:00:06.2]} 75. Kxa4 {[%clk 0:00:06.1]} 75... Kf7 {[%clk
0:00:06.7]} 76. Kb5 {[%clk 0:00:06.4]} 76... Ke6 {[%clk 0:00:06.9]} 77. Kb6
{[%clk 0:00:06.2]} 77... Be2 {[%clk 0:00:06.9]} 78. a4 {[%clk 0:00:04.9]} 78...
Bc4 {[%clk 0:00:07]} 79. a5 {[%clk 0:00:04.5]} 79... Kd7 {[%clk 0:00:07.5]} 80.
a6 {[%clk 0:00:03.8]} 80... Kc8 {[%clk 0:00:08]} 81. a7 {[%clk 0:00:03.8]} 81...
Bd5 {[%clk 0:00:08.3]} 82. f7 {[%clk 0:00:04.1]} 1-0

[Event "*** Titled Tuesday Blitz"]
[Site "Chess.com"]
[Date "2020.04.21"]
[Round "3"]
[White "powermove"]
[Black "zurzan"]
[Result "0-1"]
[WhiteElo "1599"]
[BlackElo "2006"]
[TimeControl "180+1"]
[EndTime "10:30:46 PDT"]
[Termination "zurzan won on time"]

1. Nf3 {[%clk 0:03:00.9]} 1... d6 {[%clk 0:02:59.3]} 2. c4 {[%clk 0:02:59.7]}
2... f5 {[%clk 0:02:58.2]} 3. d4 {[%clk 0:02:56.5]} 3... Nf6 {[%clk 0:02:57.9]}
4. Nc3 {[%clk 0:02:55.4]} 4... g6 {[%clk 0:02:58]} 5. g3 {[%clk 0:02:54.8]} 5...
Bg7 {[%clk 0:02:58.9]} 6. Bg2 {[%clk 0:02:52.9]} 6... O-O {[%clk 0:02:59.8]} 7.
O-O {[%clk 0:02:48.6]} 7... c6 {[%clk 0:03:00.7]} 8. Rb1 {[%clk 0:02:39.6]} 8...
a5 {[%clk 0:02:57.4]} 9. b3 {[%clk 0:02:36.6]} 9... Na6 {[%clk 0:02:56.6]} 10.
Bb2 {[%clk 0:02:26.2]} 10... h6 {[%clk 0:02:50.3]} 11. d5 {[%clk 0:02:09]} 11...
Qc7 {[%clk 0:02:43.6]} 12. Nd4 {[%clk 0:02:05]} 12... Bd7 {[%clk 0:02:25.2]} 13.
Qd2 {[%clk 0:01:56]} 13... Nc5 {[%clk 0:02:09.6]} 14. f3 {[%clk 0:01:48.8]}
14... Rad8 {[%clk 0:02:02.7]} 15. e4 {[%clk 0:01:41.7]} 15... fxe4 {[%clk
0:02:01.8]} 16. fxe4 {[%clk 0:01:40.9]} 16... e5 {[%clk 0:01:51.3]} 17. Nf3
{[%clk 0:01:36.7]} 17... Ncxe4 {[%clk 0:01:48.8]} 18. Nxe4 {[%clk 0:01:33.5]}
18... Nxe4 {[%clk 0:01:49.7]} 19. Qe2 {[%clk 0:01:31.7]} 19... Nf6 {[%clk
0:01:32.8]} 20. Nh4 {[%clk 0:01:27.7]} 20... Bg4 {[%clk 0:01:16.3]} 21. Qd3
{[%clk 0:01:21.5]} 21... g5 {[%clk 0:01:07.1]} 22. Nf5 {[%clk 0:01:16.2]} 22...
Nd7 {[%clk 0:00:47.7]} 23. Ne7+ {[%clk 0:01:10.3]} 23... Kh8 {[%clk 0:00:42.4]}
24. Ng6+ {[%clk 0:01:10.1]} 24... Kg8 {[%clk 0:00:42.5]} 25. Nxf8 {[%clk
0:01:09.5]} 25... Rxf8 {[%clk 0:00:43.4]} 26. Rxf8+ {[%clk 0:01:04.4]} 26...
Nxf8 {[%clk 0:00:43.2]} 27. dxc6 {[%clk 0:00:53.1]} 27... bxc6 {[%clk
0:00:43.2]} 28. h3 {[%clk 0:00:50]} 28... Be6 {[%clk 0:00:39.1]} 29. Rd1 {[%clk
0:00:48.2]} 29... d5 {[%clk 0:00:21.5]} 30. cxd5 {[%clk 0:00:47.1]} 30... cxd5
{[%clk 0:00:22.4]} 31. Bxd5 {[%clk 0:00:45.3]} 31... Bxd5 {[%clk 0:00:22.2]} 32.
Qxd5+ {[%clk 0:00:44.4]} 32... Kh8 {[%clk 0:00:23.1]} 33. Rc1 {[%clk 0:00:40.3]}
33... Qb6+ {[%clk 0:00:22.6]} 34. Kg2 {[%clk 0:00:39.3]} 34... Qe3 {[%clk
0:00:20.4]} 35. Qf3 {[%clk 0:00:36]} 35... Qd2+ {[%clk 0:00:18.6]} 36. Qf2
{[%clk 0:00:35]} 36... Qd5+ {[%clk 0:00:19]} 37. Kh2 {[%clk 0:00:33.8]} 37...
Ng6 {[%clk 0:00:17]} 38. Rc8+ {[%clk 0:00:32.8]} 38... Kh7 {[%clk 0:00:16.7]}
39. Qc2 {[%clk 0:00:32.5]} 39... Qf3 {[%clk 0:00:13.5]} 40. Rc6 {[%clk
0:00:31.7]} 40... Qf7 {[%clk 0:00:09.5]} 41. a3 {[%clk 0:00:26.7]} 41... Bf6
{[%clk 0:00:09.4]} 42. Qf2 {[%clk 0:00:24.6]} 42... Kg7 {[%clk 0:00:09]} 43. Qf5
{[%clk 0:00:24.1]} 43... Ne7 {[%clk 0:00:07.3]} 44. Qd7 {[%clk 0:00:21.5]} 44...
Nxc6 {[%clk 0:00:06.9]} 45. Qxc6 {[%clk 0:00:21.5]} 45... e4 {[%clk 0:00:07.6]}
46. Qc4 {[%clk 0:00:20.6]} 46... Bxb2 {[%clk 0:00:06.7]} 47. Qc2 {[%clk
0:00:18.9]} 47... Qf6 {[%clk 0:00:06.1]} 48. Kg2 {[%clk 0:00:18.9]} 48... e3
{[%clk 0:00:06]} 49. Qc7+ {[%clk 0:00:17.6]} 49... Kg6 {[%clk 0:00:05.6]} 50.
Qc2+ {[%clk 0:00:17.5]} 50... Kg7 {[%clk 0:00:04.8]} 51. Qc7+ {[%clk 0:00:17.2]}
51... Kg8 {[%clk 0:00:04.5]} 52. Qc8+ {[%clk 0:00:16.2]} 52... Kh7 {[%clk
0:00:04.8]} 53. Qd7+ {[%clk 0:00:16.6]} 53... Kg6 {[%clk 0:00:05.1]} 54. Qd3+
{[%clk 0:00:16.6]} 54... Kh5 {[%clk 0:00:05]} 55. Qe2+ {[%clk 0:00:16.1]} 55...
Kg6 {[%clk 0:00:05]} 56. Qd3+ {[%clk 0:00:16.1]} 56... Kf7 {[%clk 0:00:05.9]}
57. Qd7+ {[%clk 0:00:15.3]} 57... Kf8 {[%clk 0:00:05.6]} 58. Qc8+ {[%clk
0:00:14.6]} 58... Ke7 {[%clk 0:00:05.6]} 59. Qc7+ {[%clk 0:00:14.7]} 59... Ke6
{[%clk 0:00:05.2]} 60. Qc6+ {[%clk 0:00:15.2]} 60... Ke7 {[%clk 0:00:05]} 61.
Qc7+ {[%clk 0:00:14.9]} 61... Kf8 {[%clk 0:00:05.9]} 62. Qc8+ {[%clk 0:00:14.4]}
62... Kf7 {[%clk 0:00:06.8]} 63. Qc7+ {[%clk 0:00:14.3]} 63... Qe7 {[%clk
0:00:07.1]} 64. Qc4+ {[%clk 0:00:13.7]} 64... Kf8 {[%clk 0:00:06.7]} 65. Qc8+
{[%clk 0:00:10.6]} 65... Kf7 {[%clk 0:00:03.8]} 66. Qc4+ {[%clk 0:00:10.1]}
66... Qe6 {[%clk 0:00:03.9]} 67. Qc7+ {[%clk 0:00:09.9]} 67... Kf6 {[%clk
0:00:04.1]} 68. Qc2 {[%clk 0:00:06.6]} 68... e2 {[%clk 0:00:03.9]} 69. Qxb2+
{[%clk 0:00:05.5]} 69... Kf7 {[%clk 0:00:04.8]} 70. Kf2 {[%clk 0:00:04.6]} 70...
e1=Q+ {[%clk 0:00:04.2]} 71. Kg2 {[%clk 0:00:03.7]} 71... Q6e2+ {[%clk
0:00:04.3]} 72. Qxe2 {[%clk 0:00:02.5]} 72... Qxe2+ {[%clk 0:00:05.2]} 0-1